bitfinex/quotes_BTCUSD_20240815
["timestamp","ask_amount","ask_price","bid_price","bid_amount"]
[1723743209870,0.005,59400.0,59399.0,0.00476264]
[1723743210735,0.168346,59402.0,59399.0,0.00476264]
[1723743210889,0.007,59402.0,59400.0,0.168349]
[1723743211089,0.007,59402.0,59401.0,0.841735]
[1723743211276,0.007,59402.0,59401.0,1.01721426]
[1723743211477,0.0641,59412.0,59403.0,0.336678]
[1723743211737,0.0641,59412.0,59405.0,0.336668]
[1723743211890,0.168319,59411.0,59407.0,0.168328]
[1723743212091,0.0641,59412.0,59408.0,0.336653]
[1723743212289,0.0641,59412.0,59410.0,0.16832]
[1723743212718,0.168321,59410.0,59405.0,0.336668]
[1723743213052,0.0771,59412.0,59409.0,0.168323]
[1723743213053,0.0641,59412.0,59409.0,0.168323]
[1723743213254,0.232416,59412.0,59406.0,0.336666]
[1723743213460,0.245416,59412.0,59408.0,0.168326]
[1723743213660,0.232416,59412.0,59408.0,0.168326]
[1723743214059,0.01,59410.0,59408.0,0.168326]
[1723743214218,0.01,59410.0,59408.0,0.169326]
[1723743214414,0.01,59410.0,59408.0,0.001]
[1723743214415,0.00979738,59410.0,59408.0,0.001]
[1723743214641,0.168324,59409.0,59408.0,0.001]
[1723743214844,0.168324,59409.0,59403.0,0.336681]
[1723743214845,0.0821,59408.0,59395.0,0.41206157]
[1723743215050,0.0821,59408.0,59397.0,0.4787]
[1723743215449,0.16835,59401.0,59397.0,0.647055]
[1723743215989,0.64895,59400.0,59392.0,0.05023728]
[1723743216352,0.64895,59400.0,59393.0,0.336735]
[1723743216564,0.64895,59400.0,59395.0,0.168362]
[1723743216798,0.64895,59400.0,59399.0,0.004826]
[1723743217202,0.64895,59400.0,59399.0,0.000826]
[1723743218440,0.98665,59400.0,59399.0,0.008826]
[1723743218641,0.98665,59400.0,59399.0,0.01276264]
[1723743218642,0.64995,59400.0,59399.0,0.01276264]
[1723743218845,0.64895,59400.0,59399.0,0.003826]
[1723743219017,0.64895,59400.0,59399.0,0.01176264]
[1723743219365,0.64895,59400.0,59399.0,0.007826]
[1723743220049,0.98565,59400.0,59399.0,0.007826]
[1723743220287,0.98565,59400.0,59399.0,0.004826]
[1723743220486,0.98765,59400.0,59399.0,0.000826]
[1723743223633,0.31425,59400.0,59399.0,0.000826]
[1723743223835,0.65095,59400.0,59399.0,0.000826]
[1723743223963,0.65095,59400.0,59399.0,0.00476264]
[1723743224170,0.65095,59400.0,59399.0,0.000826]
[1723743224374,0.1459,59400.0,59399.0,0.000826]
[1723743224575,0.002,59400.0,59399.0,0.169179]
[1723743224801,0.002,59400.0,59399.0,0.17311564]
[1723743225443,0.002,59400.0,59399.0,0.00476264]
[1723743225639,0.17035,59400.0,59399.0,0.00476264]
[1723743225840,0.50705,59400.0,59399.0,0.00476264]
[1723743226069,0.50705,59400.0,59399.0,0.000826]
[1723743226277,0.002,59400.0,59399.0,0.65568654]
[1723743226476,0.002,59400.0,59399.0,1.50138818]
[1723743227167,0.336625,59414.0,59407.0,0.168329]
[1723743227168,0.168322,59410.0,59407.0,0.168329]
[1723743227418,0.00090861,59416.0,59407.0,0.168329]
[1723743227419,0.00090861,59416.0,59415.0,0.841537]
[1723743227799,0.00090861,59416.0,59415.0,1.18199327]
[1723743228063,0.00090861,59416.0,59415.0,1.43274781]
[1723743228253,0.00090861,59416.0,59415.0,1.76936281]
[1723743228437,0.00090861,59416.0,59415.0,1.79236281]
[1723743228862,0.00090861,59416.0,59415.0,1.79636281]
[1723743229217,0.00090861,59416.0,59415.0,1.79236281]
[1723743229562,0.00090861,59416.0,59415.0,1.79736281]
[1723743229563,0.00190861,59416.0,59415.0,1.79736281]
[1723743230312,0.00190861,59416.0,59415.0,1.85756281]
[1723743230715,0.00190861,59416.0,59415.0,2.51757781]
[1723743230912,0.00190861,59416.0,59415.0,2.18096281]
[1723743231140,0.00190861,59416.0,59415.0,2.17796281]
[1723743231662,0.00190861,59416.0,59415.0,2.18496281]
[1723743231663,0.00290861,59416.0,59415.0,2.18496281]
[1723743232292,0.00290861,59416.0,59415.0,1.96456281]
[1723743238365,0.00290861,59416.0,59415.0,2.30117781]
[1723743238601,0.00290861,59416.0,59415.0,2.52157781]
[1723743244526,0.00290861,59416.0,59415.0,1.46554781]
[1723743244729,0.00290861,59416.0,59415.0,1.36554781]
[1723743249937,0.00290861,59416.0,59415.0,1.84846281]
[1723743250165,0.00290861,59416.0,59415.0,2.02183712]
[1723743251038,0.00290861,59416.0,59415.0,2.57885212]
[1723743251885,0.00290861,59416.0,59415.0,2.53475212]
[1723743253030,0.00290861,59416.0,59415.0,2.53474171]
[1723743253243,0.00290861,59416.0,59415.0,2.19812671]
[1723743253685,0.00290861,59416.0,59415.0,2.05182671]
[1723743253905,0.00290861,59416.0,59415.0,2.02882671]
[1723743254976,0.00290861,59416.0,59415.0,1.97846281]
[1723743255387,0.00290861,59416.0,59415.0,2.00146281]
[1723743257213,0.00290861,59416.0,59415.0,2.07736281]
[1723743257698,0.00290861,59416.0,59415.0,2.07936281]
[1723743258107,0.00290861,59416.0,59415.0,2.07736281]
[1723743258523,0.00290861,59416.0,59415.0,2.00146281]
[1723743258935,0.00290861,59416.0,59415.0,2.05183376]
[1723743260483,0.00290861,59416.0,59415.0,2.00146281]
[1723743261390,0.00090861,59430.0,59422.0,1.597387]
[1723743261591,0.00090861,59430.0,59422.0,2.74681654]
[1723743261721,0.00090861,59430.0,59422.0,2.75061611]
[1723743262358,0.00072414,59424.0,59423.0,1.969675]
[1723743262692,0.00090861,59430.0,59423.0,1.969675]
[1723743262693,0.00090861,59430.0,59429.0,0.621344]
[1723743262811,0.00090861,59430.0,59429.0,2.38380654]
[1723743263013,0.00090751,59431.0,59429.0,2.38380654]
[1723743263014,0.00090751,59431.0,59430.0,1.329055]
[1723743263253,0.00090751,59431.0,59430.0,2.61666954]
[1723743263455,0.00090751,59431.0,59430.0,3.00002505]
[1723743264412,0.00090861,59440.0,59431.0,2.223146]
[1723743264610,0.00090861,59440.0,59438.0,0.716767]
[1723743264785,0.00090861,59440.0,59439.0,1.296216]
[1723743264987,0.07917279,59440.0,59439.0,1.90424954]
[1723743265190,0.07917279,59440.0,59439.0,2.26742686]
[1723743265389,0.00090861,59440.0,59439.0,2.26742686]
[1723743265959,0.00190861,59440.0,59439.0,2.28142686]
[1723743266358,0.00090861,59440.0,59439.0,2.26742686]
[1723743266567,0.00190861,59440.0,59439.0,2.28142686]
[1723743266993,0.00190861,59440.0,59439.0,2.61790586]
[1723743267611,0.00190861,59440.0,59439.0,2.72790586]
[1723743267814,0.009086,59445.0,59443.0,0.002]
[1723743268014,0.009086,59445.0,59443.0,0.46168597]
[1723743268220,0.009086,59445.0,59443.0,1.01636905]
[1723743268422,0.009086,59445.0,59443.0,0.00367451]
[1723743268423,0.23379717,59444.0,59443.0,0.00367451]
[1723743268620,0.23379717,59444.0,59443.0,0.50835851]
[1723743268792,0.23379717,59444.0,59443.0,0.504684]
[1723743268994,0.23379717,59444.0,59443.0,0.84481451]
[1723743269396,0.23379717,59444.0,59443.0,0.85016152]
[1723743269963,0.23379717,59444.0,59443.0,0.86416152]
[1723743270168,0.23379717,59444.0,59443.0,0.51370552]
[1723743271568,0.23379717,59444.0,59443.0,0.85016152]
[1723743271974,0.23479717,59444.0,59443.0,0.86416152]
[1723743272384,0.15109717,59444.0,59443.0,1.02171606]
[1723743272753,0.15109717,59444.0,59443.0,2.08332806]
[1723743272754,0.08729717,59444.0,59443.0,2.08332806]
[1723743272953,0.00909701,59444.0,59443.0,1.96332806]
[1723743273369,0.00909701,59444.0,59443.0,2.29978406]
[1723743273571,0.00909701,59444.0,59443.0,1.96332806]
[1723743273733,0.00909701,59444.0,59443.0,1.92401292]
[1723743274138,0.00909701,59444.0,59443.0,1.91001292]
[1723743274298,0.00909701,59444.0,59443.0,1.92401292]
[1723743274706,0.00909701,59444.0,59443.0,1.91001292]
[1723743275320,0.009086,59445.0,59444.0,1.514029]
[1723743275527,0.0658,59453.0,59452.0,0.168202]
[1723743275723,0.0658,59453.0,59452.0,1.6397258]
[1723743275932,0.0658,59453.0,59452.0,2.37235845]
[1723743276131,0.0658,59453.0,59452.0,1.85022213]
[1723743276550,0.0658,59453.0,59452.0,1.85016377]
[1723743276791,0.0658,59453.0,59452.0,1.85616377]
[1723743277010,0.0658,59453.0,59452.0,1.86116377]
[1723743277209,0.0658,59453.0,59452.0,1.98670869]
[1723743278066,0.0658,59453.0,59452.0,1.86116377]
[1723743278509,0.0658,59453.0,59452.0,1.76695732]
[1723743278753,0.0658,59453.0,59452.0,0.65774232]
[1723743278754,0.1411,59453.0,59452.0,0.65774232]
[1723743278967,0.1411,59453.0,59452.0,0.18449808]
[1723743279293,0.1411,59453.0,59452.0,0.01629608]
[1723743279423,0.3093,59453.0,59452.0,0.01629608]
[1723743279634,0.1411,59453.0,59452.0,0.01991702]
[1723743279828,0.1411,59453.0,59452.0,0.18311902]
[1723743280315,0.1411,59453.0,59452.0,0.17711902]
[1723743280836,0.1411,59453.0,59452.0,0.00891702]
[1723743281043,0.1411,59453.0,59452.0,0.17711902]
[1723743281264,0.1411,59453.0,59452.0,0.00891702]
[1723743281466,0.3093,59453.0,59452.0,0.00891702]
[1723743281675,0.9821,59453.0,59452.0,0.00891702]
[1723743282050,0.083,59447.0,59438.0,0.05015388]
[1723743282287,0.083,59440.0,59436.0,0.51466362]
[1723743282462,0.083,59440.0,59439.0,0.00536965]
[1723743282463,0.587714,59440.0,59439.0,0.00536965]
[1723743282867,0.075,59438.0,59434.0,0.336502]
[1723743283069,0.075,59438.0,59436.0,0.168246]
[1723743283275,0.243244,59438.0,59433.0,0.4787]
[1723743283630,0.075,59438.0,59435.0,0.16825]
[1723743283859,0.075,59438.0,59433.0,0.4787]
[1723743283860,0.081,59436.0,59433.0,0.4787]
[1723743284062,0.336477,59440.0,59433.0,0.4787]
[1723743284063,0.1446,59434.0,59433.0,0.4787]
[1723743284237,0.312853,59434.0,59433.0,0.4787]
[1723743284657,0.312853,59434.0,59433.0,0.4797]
[1723743285256,0.1446,59434.0,59433.0,0.4797]
[1723743285429,0.1446,59434.0,59433.0,0.984469]
[1723743285634,0.1446,59434.0,59433.0,0.98987262]
[1723743286069,0.1446,59434.0,59433.0,0.98887262]
[1723743286274,0.1446,59434.0,59433.0,0.65235962]
[1723743286652,0.1486,59434.0,59433.0,0.65235962]
[1723743287178,0.1446,59434.0,59433.0,0.48410362]
[1723743287381,0.1446,59434.0,59433.0,0.00540362]
[1723743287382,0.985867,59434.0,59433.0,0.00540362]
[1723743287747,0.985867,59434.0,59428.0,0.16827]
[1723743287748,0.0776,59431.0,59428.0,0.16827]
[1723743287944,0.0776,59431.0,59430.0,0.168265]
[1723743288316,0.0776,59431.0,59430.0,0.50854692]
[1723743288717,0.0776,59431.0,59430.0,0.17201692]
[1723743289331,0.0776,59431.0,59430.0,0.17743753]
[1723743289537,0.0776,59431.0,59430.0,0.00917253]
[1723743289746,0.582386,59431.0,59430.0,0.00917253]
[1723743289951,0.582386,59431.0,59417.0,0.0501305]
[1723743289952,0.168285,59423.0,59417.0,0.0501305]
[1723743290161,0.474324,59431.0,59417.0,0.0501305]
[1723743290162,0.0776,59424.0,59417.0,0.85126162]
[1723743290375,0.0776,59424.0,59423.0,0.168285]
[1723743290782,0.0776,59424.0,59423.0,0.17207861]
[1723743290958,0.0776,59424.0,59423.0,0.00379361]
[1723743291562,0.0776,59424.0,59423.0,0.504855]
[1723743291757,0.0776,59424.0,59423.0,0.17207861]
[1723743292573,0.0602,59426.0,59425.0,0.168279]
[1723743292948,0.0602,59426.0,59425.0,0.841395]
[1723743293152,0.0602,59426.0,59425.0,0.84684393]
[1723743293894,0.0602,59426.0,59425.0,0.85184393]
[1723743294672,0.0602,59426.0,59425.0,0.85562563]
[1723743295130,0.0602,59426.0,59425.0,0.51906763]
[1723743295536,0.733306,59426.0,59425.0,0.01423063]
[1723743295743,0.984182,59426.0,59425.0,0.01423063]
[1723743295964,0.984182,59426.0,59425.0,0.005]
[1723743296570,0.984182,59426.0,59425.0,0.002]
[1723743296784,0.0802,59422.0,59418.0,0.168298]
[1723743296989,0.0802,59422.0,59421.0,0.16829]
[1723743297716,0.0802,59422.0,59421.0,0.504871]
[1723743298828,0.0802,59422.0,59421.0,0.16829]
[1723743299228,0.0812,59422.0,59421.0,0.504871]
[1723743299992,0.0812,59422.0,59421.0,0.16829]
[1723743300360,0.0812,59422.0,59418.0,0.336596]
[1723743300566,0.0812,59422.0,59420.0,0.168292]
[1723743300908,0.0812,59422.0,59411.0,0.86551987]
[1723743300909,0.414815,59415.0,59411.0,0.4787]
[1723743301217,0.414815,59415.0,59410.0,0.05101187]
[1723743301218,0.246507,59415.0,59412.0,0.168315]
[1723743301420,0.246507,59415.0,59410.0,0.000826]
[1723743301421,0.168311,59414.0,59410.0,0.000826]
[1723743301621,0.063,59413.0,59412.0,0.168316]
[1723743301822,0.063,59413.0,59410.0,0.000826]
[1723743301823,0.0796,59412.0,59410.0,0.000826]
[1723743302106,0.168318,59411.0,59410.0,0.000826]
[1723743302307,0.504955,59411.0,59410.0,0.000826]
[1723743302523,0.646855,59411.0,59410.0,0.000826]
[1723743302657,0.646855,59411.0,59410.0,0.008826]
[1723743302857,0.646855,59411.0,59410.0,0.000826]
[1723743303440,0.647855,59411.0,59410.0,0.000826]
[1723743303723,1.321129,59411.0,59410.0,0.000826]
[1723743304086,0.984492,59411.0,59410.0,0.000826]
[1723743305077,1.321129,59411.0,59410.0,0.000826]
[1723743306279,1.320129,59411.0,59410.0,0.000826]
[1723743306685,1.329129,59411.0,59410.0,0.001826]
[1723743307270,1.329129,59411.0,59410.0,0.002826]
[1723743307670,1.50068354,59411.0,59410.0,0.002826]
[1723743308125,1.93068354,59411.0,59410.0,0.002826]
[1723743308299,1.92168354,59411.0,59410.0,0.001826]
[1723743308757,1.92168354,59411.0,59410.0,0.002826]
[1723743308758,1.93168354,59411.0,59410.0,0.002826]
[1723743309140,2.36832054,59411.0,59410.0,0.001826]
[1723743309539,2.36832054,59411.0,59410.0,0.002826]
[1723743309746,2.36832054,59411.0,59410.0,0.000826]
[1723743309747,2.36843281,59411.0,59410.0,0.000826]
[1723743310106,2.36843281,59411.0,59410.0,0.001826]
[1723743310331,2.36843281,59411.0,59410.0,0.002826]
[1723743310332,1.69900398,59411.0,59410.0,0.002826]
[1723743311078,2.03564098,59411.0,59410.0,0.002826]
[1723743311279,1.71660368,59411.0,59410.0,0.002826]
[1723743312909,1.27996668,59411.0,59410.0,0.002826]
[1723743313091,0.1734997,59411.0,59410.0,0.002826]
[1723743313291,0.0933997,59411.0,59410.0,0.002826]
[1723743313539,0.2617177,59411.0,59410.0,0.00669707]
[1723743314089,0.0933997,59411.0,59410.0,0.00669707]
[1723743314900,0.0933997,59411.0,59410.0,0.51166107]
[1723743315097,0.0793997,59411.0,59410.0,0.84730407]
[1723743315408,0.0883997,59411.0,59410.0,0.84730407]
[1723743315577,0.0708,59411.0,59410.0,0.17401807]
[1723743315976,0.0708,59411.0,59410.0,0.17501807]
[1723743316181,0.239118,59411.0,59410.0,0.00669707]
[1723743316558,0.0708,59411.0,59410.0,0.00669707]
[1723743316966,0.0708,59411.0,59410.0,0.17501807]
[1723743317508,0.0708,59411.0,59410.0,0.00669707]
[1723743317717,0.575755,59411.0,59410.0,0.00669707]
[1723743318033,0.575755,59411.0,59410.0,0.002826]
[1723743319134,0.575755,59411.0,59410.0,0.00669707]
[1723743319322,0.575755,59411.0,59410.0,0.002826]
[1723743319523,0.575755,59411.0,59410.0,0.00669707]
[1723743319721,0.575755,59411.0,59410.0,0.002826]
[1723743319921,0.239118,59411.0,59410.0,0.00669707]
[1723743320124,0.239118,59411.0,59410.0,0.002826]
[1723743320346,0.239118,59411.0,59410.0,0.00669707]
[1723743320698,0.009,59411.0,59410.0,1.69314461]
[1723743320904,0.065526,59424.0,59423.0,0.841425]
[1723743321106,0.000826,59424.0,59423.0,0.841425]
[1723743321315,0.000826,59424.0,59423.0,0.84521861]
[1723743321569,0.000826,59424.0,59423.0,0.85067886]
[1723743321815,1.08919054,59424.0,59423.0,0.00925386]
[1723743322074,1.50637314,59424.0,59423.0,0.00925386]
[1723743322308,1.50637314,59424.0,59410.0,0.001826]
[1723743322309,0.504955,59411.0,59410.0,0.000826]
[1723743322531,1.06746927,59411.0,59410.0,0.000826]
[1723743322748,1.57566081,59411.0,59410.0,0.000826]
[1723743322951,1.59157574,59411.0,59410.0,0.000826]
[1723743323158,2.21434854,59411.0,59410.0,0.000826]
[1723743323891,2.21517297,59411.0,59410.0,0.000826]
[1723743325326,1.63519262,59411.0,59410.0,0.000826]
[1723743325478,1.63919262,59411.0,59410.0,0.001826]
[1723743325877,2.15242962,59411.0,59410.0,0.001826]
[1723743326074,2.15642962,59411.0,59410.0,0.002826]
[1723743326321,2.32398416,59411.0,59410.0,0.001826]
[1723743326742,2.32998416,59411.0,59410.0,0.001826]
[1723743327160,2.32998416,59411.0,59410.0,0.002826]
[1723743327692,2.32998416,59411.0,59410.0,0.001826]
[1723743327889,2.32998416,59411.0,59410.0,0.002826]
[1723743329337,2.38857852,59411.0,59410.0,0.002826]
[1723743329837,2.40800064,59411.0,59410.0,0.002826]
[1723743332027,2.36351756,59411.0,59410.0,0.002826]
[1723743332292,2.40799494,59411.0,59410.0,0.002826]
[1723743333252,2.4075637,59411.0,59410.0,0.002826]
[1723743333515,2.23600916,59411.0,59410.0,0.002826]
[1723743334559,1.72277216,59411.0,59410.0,0.002826]
[1723743334762,1.54475568,59411.0,59410.0,0.002826]
[1723743335167,0.05530338,59411.0,59410.0,0.080726]
[1723743335343,0.02673852,59411.0,59410.0,0.080726]
[1723743335585,0.19505652,59411.0,59410.0,0.00501032]
[1723743335791,1.12039219,59411.0,59410.0,0.00501032]
[1723743335994,1.44702919,59411.0,59410.0,0.001826]
[1723743336198,1.36652919,59411.0,59410.0,0.001826]
[1723743336400,1.37052919,59411.0,59410.0,0.002826]
[1723743336610,1.36652919,59411.0,59410.0,0.001826]
[1723743336823,1.36652919,59411.0,59410.0,0.000826]
[1723743336994,1.36952919,59411.0,59410.0,0.000826]
[1723743337216,1.02989219,59411.0,59410.0,0.000826]
[1723743337421,1.03389219,59411.0,59410.0,0.001826]
[1723743337710,1.03789219,59411.0,59410.0,0.001826]
[1723743337852,1.02989219,59411.0,59410.0,0.000826]
[1723743338056,1.43262919,59411.0,59410.0,0.000826]
[1723743338256,1.64650521,59411.0,59410.0,0.001826]
[1723743338483,1.98314221,59411.0,59410.0,0.001826]
[1723743338682,1.98314221,59411.0,59410.0,0.000826]
[1723743338683,1.97893973,59411.0,59410.0,0.000826]
[1723743339105,1.64230273,59411.0,59410.0,0.000826]
[1723743339644,1.59780706,59411.0,59410.0,0.000826]
[1723743339804,1.64227742,59411.0,59410.0,0.000826]
[1723743340167,2.06094492,59411.0,59410.0,0.001826]
[1723743340388,2.06394492,59411.0,59410.0,0.002826]
[1723743340596,2.10821772,59411.0,59410.0,0.001826]
[1723743340797,2.10821772,59411.0,59410.0,0.000826]
[1723743340798,2.10521772,59411.0,59410.0,0.000826]
[1723743340996,2.11221772,59411.0,59410.0,0.002826]
[1723743342058,2.12241365,59411.0,59410.0,0.002826]
[1723743342977,2.07794329,59411.0,59410.0,0.002826]
[1723743343110,2.12241572,59411.0,59410.0,0.002826]
[1723743343671,1.65947448,59411.0,59410.0,0.002826]
[1723743344664,0.05209501,59411.0,59410.0,0.339469]
[1723743344908,0.00762352,59411.0,59410.0,1.258076]
[1723743345127,0.00762352,59411.0,59410.0,1.32536032]
[1723743345315,0.00762352,59411.0,59410.0,1.77309478]
[1723743345316,0.00362352,59411.0,59410.0,1.77309478]
[1723743345722,0.00362352,59411.0,59410.0,1.32253432]
[1723743345870,0.00062352,59411.0,59410.0,1.32253432]
[1723743346073,0.00362352,59411.0,59410.0,1.32353432]
[1723743346271,0.00362352,59411.0,59410.0,1.37288967]
[1723743346489,0.00362352,59411.0,59410.0,0.98589132]
[1723743346757,0.00762352,59411.0,59410.0,0.98889132]
[1723743347178,0.00362352,59411.0,59410.0,0.98789132]
[1723743347388,0.00362352,59411.0,59410.0,1.32453432]
[1723743347543,0.00362352,59411.0,59410.0,0.98989132]
[1723743347762,0.00362352,59411.0,59410.0,0.08318432]
[1723743347962,0.00362352,59411.0,59410.0,0.08409292]
[1723743347963,0.17194152,59411.0,59410.0,0.08409292]
[1723743349073,0.16894152,59411.0,59410.0,0.08209292]
[1723743349449,0.00362352,59411.0,59410.0,0.08209292]
[1723743349589,0.00062352,59411.0,59410.0,0.08009292]
[1723743350118,0.00362352,59411.0,59410.0,0.08109292]
[1723743350705,0.00062352,59411.0,59410.0,0.08009292]
[1723743350905,0.00362352,59411.0,59410.0,0.08109292]
[1723743351534,0.00062352,59411.0,59410.0,0.08109292]
[1723743351708,0.00062352,59411.0,59410.0,0.58605692]
[1723743352286,0.00062352,59411.0,59410.0,1.25834292]
[1723743352582,0.00162352,59411.0,59410.0,1.25834292]
[1723743352798,0.00062352,59411.0,59410.0,1.25834292]
[1723743353176,0.00062352,59411.0,59410.0,1.26034292]
[1723743353549,0.00062352,59411.0,59410.0,1.31069578]
[1723743353900,0.00062352,59411.0,59410.0,1.73526776]
[1723743354139,0.00062352,59411.0,59410.0,1.63456204]
[1723743354257,0.00062352,59411.0,59410.0,1.8258442]
[1723743354673,0.00062352,59411.0,59410.0,1.69996204]
[1723743355124,0.00062352,59411.0,59410.0,1.36331904]
[1723743355536,0.00062352,59411.0,59410.0,1.36231904]
[1723743355687,0.168294,59420.0,59416.0,0.168304]
[1723743355899,0.168294,59420.0,59416.0,0.21861413]
[1723743356103,0.168294,59420.0,59417.0,0.00214261]
[1723743356553,0.168294,59420.0,59417.0,0.17044261]
[1723743357120,0.168294,59420.0,59418.0,0.168297]
[1723743357121,0.004,59420.0,59418.0,0.168297]
[1723743357321,0.004,59420.0,59418.0,0.00213665]
[1723743357322,0.002,59420.0,59418.0,0.00213665]
[1723743357757,0.170294,59420.0,59418.0,0.00213665]
[1723743357952,0.168294,59420.0,59418.0,0.00213665]
[1723743358840,0.000826,59424.0,59423.0,1.177995]
[1723743359118,0.000826,59424.0,59423.0,1.36800513]
[1723743359266,0.000826,59424.0,59423.0,0.98323186]
[1723743359470,0.000826,59424.0,59423.0,1.4318131]
[1723743359901,0.000826,59424.0,59423.0,1.7683831]
[1723743360262,0.002826,59424.0,59423.0,1.39526706]
[1723743360497,0.002826,59424.0,59423.0,1.40126706]
[1723743360752,0.000826,59424.0,59423.0,1.32580186]
[1723743360867,0.000826,59424.0,59423.0,1.31980186]
[1723743361070,0.000826,59424.0,59423.0,1.32980186]
[1723743361533,0.000826,59424.0,59423.0,1.38004213]
[1723743362429,0.000826,59424.0,59423.0,1.33880186]
[1723743362636,0.000826,59424.0,59423.0,0.93873186]
[1723743363911,0.067326,59424.0,59423.0,0.02110686]
[1723743364327,0.000826,59424.0,59423.0,0.02110686]
[1723743364536,0.000826,59424.0,59423.0,0.52596186]
[1723743364742,0.000826,59424.0,59423.0,0.94223186]
[1723743364945,0.000826,59424.0,59423.0,1.27880186]
[1723743365155,0.000826,59424.0,59423.0,1.34290186]
[1723743365356,0.000826,59424.0,59423.0,1.33390186]
[1723743365566,0.000826,59424.0,59423.0,1.32390186]
[1723743365779,0.000826,59424.0,59423.0,1.32790186]
[1723743365982,0.000826,59424.0,59423.0,1.33190186]
[1723743366204,0.000826,59424.0,59423.0,1.32790186]
[1723743366412,0.000826,59424.0,59423.0,1.33090186]
[1723743367127,0.000826,59424.0,59423.0,1.34090186]
[1723743367327,0.000826,59424.0,59423.0,1.33390186]
[1723743367535,0.000826,59424.0,59423.0,1.34390186]
[1723743368402,0.000826,59424.0,59423.0,1.68047186]
[1723743369689,0.000826,59424.0,59423.0,1.68464169]
[1723743370651,0.0639,59438.0,59437.0,0.168245]
[1723743371130,0.0639,59438.0,59437.0,0.17435698]
[1723743371759,0.0639,59438.0,59437.0,0.0122655]
[1723743372169,1.15786654,59438.0,59437.0,0.0132655]
[1723743372332,1.15786654,59438.0,59437.0,0.001]
[1723743373326,1.15786654,59438.0,59431.0,0.168261]
[1723743373327,0.312343,59438.0,59435.0,0.168249]
[1723743373531,0.235143,59438.0,59437.0,0.00864113]
[1723743373734,0.0709,59438.0,59437.0,0.00964113]
[1723743373959,0.572627,59438.0,59437.0,0.00964113]
[1723743374207,0.575627,59438.0,59437.0,0.002]
[1723743374468,0.912112,59438.0,59437.0,0.002]
[1723743375101,0.571627,59438.0,59437.0,0.001]
[1723743375325,0.571627,59438.0,59437.0,0.002]
[1723743375513,0.570627,59438.0,59437.0,0.001]
[1723743375748,0.168248,59436.0,59432.0,0.168258]
[1723743375896,0.0589,59438.0,59437.0,0.00864113]
[1723743376099,0.0589,59438.0,59432.0,0.336513]
[1723743376100,0.336491,59437.0,59432.0,0.168258]
[1723743376307,0.231142,59438.0,59437.0,0.00248761]
[1723743376510,0.168249,59436.0,59429.0,0.336532]
[1723743376719,0.572627,59438.0,59437.0,0.00248761]
[1723743376959,0.572627,59438.0,59431.0,0.336524]
[1723743376960,0.399385,59438.0,59433.0,0.168254]
[1723743377267,0.168248,59436.0,59433.0,0.168254]
[1723743377767,0.004,59437.0,59432.0,0.336514]
[1723743377894,0.004,59437.0,59425.0,0.077]
[1723743377895,0.004,59437.0,59436.0,0.168248]
[1723743378099,0.004,59437.0,59436.0,0.91694]
[1723743378344,0.004,59437.0,59436.0,1.253436]
[1723743378750,0.004,59438.0,59437.0,1.177715]
[1723743379012,0.398918,59450.0,59441.0,0.336466]
[1723743379144,0.398918,59450.0,59446.0,0.504658]
[1723743379145,0.0625,59450.0,59446.0,0.504658]
[1723743379363,0.0625,59450.0,59446.0,0.168219]
[1723743379613,0.230708,59450.0,59446.0,0.168219]
[1723743379763,0.168211,59449.0,59446.0,0.168219]
[1723743380169,0.336426,59449.0,59444.0,0.168223]
[1723743380397,0.169043,59447.0,59444.0,0.168223]
[1723743380735,0.25175454,59446.0,59436.0,0.0857]
[1723743380938,0.25175454,59446.0,59436.0,0.01]
[1723743380939,0.168234,59441.0,59436.0,0.01]
[1723743381248,0.168238,59440.0,59436.0,0.178248]
[1723743381658,0.168241,59439.0,59436.0,0.01]
[1723743381833,0.336476,59440.0,59436.0,0.01]
[1723743382049,0.0629,59438.0,59429.0,0.336535]
[1723743382169,0.0629,59438.0,59428.0,0.0798]
[1723743382170,0.0629,59438.0,59432.0,0.336515]
[1723743382374,0.0629,59438.0,59434.0,0.168252]
[1723743382581,0.168245,59437.0,59434.0,0.168252]
[1723743382782,0.168248,59436.0,59432.0,0.168257]
[1723743382993,0.168254,59434.0,59430.0,0.168262]
[1723743383202,0.580835,59437.0,59436.0,0.013]
[1723743383397,0.580835,59437.0,59436.0,0.006]
[1723743383606,0.580835,59437.0,59432.0,0.168258]
[1723743383607,0.16825,59436.0,59432.0,0.168258]
[1723743383930,0.16825,59436.0,59434.0,0.004]
[1723743384347,0.16825,59436.0,59435.0,0.00249952]
[1723743385337,0.000826,59453.0,59446.0,1.177536]
[1723743385531,0.000826,59453.0,59446.0,1.49679054]
[1723743385733,0.000826,59453.0,59452.0,1.501717]
[1723743385931,0.000826,59453.0,59452.0,1.524717]
[1723743386172,0.000826,59453.0,59452.0,1.37764308]
[1723743386346,0.000826,59453.0,59452.0,1.3776557]
[1723743386555,0.000826,59453.0,59452.0,1.32752154]
[1723743386800,0.000826,59453.0,59452.0,1.87197249]
[1723743386972,0.000826,59453.0,59452.0,2.40797749]
[1723743387707,0.000826,59453.0,59452.0,2.50816154]
[1723743388308,0.000826,59453.0,59452.0,2.40797749]
[1723743388532,0.000826,59453.0,59452.0,2.51214848]
[1723743388708,0.000826,59453.0,59452.0,2.50814848]
[1723743389016,0.000826,59453.0,59452.0,1.97514348]
[1723743389212,0.000826,59453.0,59452.0,2.01430789]
[1723743389427,0.000826,59453.0,59452.0,2.01130789]
[1723743389567,0.000826,59453.0,59452.0,2.00014504]
[1723743389948,0.000826,59453.0,59452.0,2.33655004]
[1723743390160,0.000826,59453.0,59452.0,2.53831289]
[1723743391150,0.000826,59453.0,59452.0,2.20190789]
[1723743391713,0.000826,59453.0,59452.0,2.20176552]
[1723743392074,0.000826,59453.0,59452.0,2.41295319]
[1723743392980,0.000826,59453.0,59452.0,2.07654819]
[1723743393165,0.000826,59453.0,59452.0,2.17669333]
[1723743393422,0.000826,59453.0,59452.0,0.92149138]
[1723743393626,0.000826,59453.0,59452.0,0.53501154]
[1723743393828,0.000826,59453.0,59452.0,0.87141654]